[Event "Vezerkepzo FM Christmas 2023"]
[Site "Budapest"]
[Date "2023.12.29"]
[Round "4.2"]
[White "Kahn, Evarth"]
[Black "Sagar Siya"]
[Result "1-0"]
[ECO "C23"]
[WhiteElo "1972"]
[BlackElo "1537"]
[Annotator "NA"]
[PlyCount "89"]
[EventDate "2023.12.25"]
[EventType "tourn"]
[EventCountry "HUN"]
[SourceTitle "playchess.com"]
[Source "ChessBase"]
[SourceQuality "1"]
[TimeControl "40/5400+30:1800+30"]

1. e4 {[%emt 0:14:28]} e5 {[%emt 0:00:11]} 2. Bc4 {[%emt 0:00:09]} Bc5 {[%emt 0:00:27]} 3. Qh5 {[%emt 0:01:24]} Qf6 {[%emt 0:00:50]} 4. Nf3 {[%emt 0:00:10]} Nc6 {[%emt 0:02:16]} 5. Nc3 {[%emt 0:02:12]} g6 {[%emt 0:05:22]} 6. Qg5 {[%emt 0:08:17]} h6 {[%emt 0:01:26]} 7. Qxf6 {[%emt 0:00:16]} Nxf6 {[%emt 0:00:09]} 8. d3 {[%emt 0:00:30]} d6 {[%emt 0:01:22]} 9. Nb5 {[%emt 0:01:21]} Bb6 {[%emt 0:03:51]} 10. Be3 {[%emt 0:00:12]} a6 {[%emt 0:01:54]} 11. Nxd6+ {[%emt 0:00:14]} cxd6 {[%emt 0:02:57]} 12. Bxb6 {[%emt 0:00:03]} Bg4 {[%emt 0:01:15]} 13. Nd2 {[%emt 0:01:21]} Nb4 {[%emt 0:05:05]} 14. Rc1 {[%emt 0:00:47]} Rc8 {[%emt 0:01:49]} 15. a3 {[%emt 0:00:14]} Nc6 {[%emt 0:00:51]} 16. h3 {[%emt 0:00:21]} Be6 {[%emt 0:00:57]} 17. O-O {[%emt 0:00:53]} Nh5 {[%emt 0:02:08]} 18. Bxe6 {[%emt 0:01:19]} fxe6 {[%emt 0:00:08]} 19. g3 {[%emt 0:01:26]} Rf8 {[%emt 0:01:38]} 20. c3 {[%emt 0:01:07]} Ke7 {[%emt 0:03:01]} 21. Nc4 {[%emt 0:00:32]} g5 {[%emt 0:02:15]} 22. Kg2 {[%emt 0:02:10]} Nf6 {[%emt 0:01:40]} 23. a4 {[%emt 0:00:46]} Nb8 {[%emt 0:01:25]} 24. f3 {[%emt 0:01:32]} Nbd7 {[%emt 0:00:27]} 25. Be3 {[%emt 0:00:32]} Nc5 {[%emt 0:00:49]} 26. Bxc5 {[%emt 0:00:15]} Rxc5 {[%emt 0:00:17]} 27. a5 {[%emt 0:04:32]} h5 {[%emt 0:02:46]} 28. b4 {[%emt 0:00:18]} Rc7 {[%emt 0:00:52]} 29. Ne3 {[%emt 0:00:38]} Rfc8 {[%emt 0:03:41]} 30. c4 {[%emt 0:00:01]} Rc6 {[%emt 0:02:32]} 31. f4 {[%emt 0:02:05]} gxf4 {[%emt 0:01:52]} 32. gxf4 {[%emt 0:00:02]} Rg8+ {[%emt 0:02:31]} 33. Kh2 {[%emt 0:00:05]} exf4 {[%emt 0:01:20]} 34. Rxf4 {[%emt 0:00:11]} b6 {[%emt 0:01:05]} 35. Rcf1 {[%emt 0:00:36]} Nd7 {[%emt 0:01:13]} 36. d4 {[%emt 0:00:34]} bxa5 {[%emt 0:02:24]} 37. bxa5 {[%emt 0:06:14]} e5 {[%emt 0:02:01]} 38. Rf7+ {[%emt 0:01:14]} Ke8 {[%emt 0:00:57]} 39. Nd5 {[%emt 0:00:13]} Rg6 {[%emt 0:04:05]} 40. Rh7 {[%emt 0:01:42]} Rxc4 {[%emt 0:03:44]} 41. Rh8+ {[%emt 0:30:15]} Nf8 {[%emt 0:30:19]} 42. Rhxf8+ {[%emt 0:00:16]} Kd7 {[%emt 0:00:08]} 43. R1f7+ {[%emt 0:00:29]} Kc6 {[%emt 0:00:31]} 44. Rc7+ {[%emt 0:00:07]} Kb5 {[%emt 0:00:10]} 45. Rb8+ {[%emt 0:00:06]} 1-0

[Event "Vezerkepzo FM Christmas 2023"]
[Site "Budapest"]
[Date "2023.12.29"]
[Round "4.3"]
[White "Manukonda Arun"]
[Black "Kozma, Edit"]
[Result "1-0"]
[ECO "E27"]
[WhiteElo "2085"]
[BlackElo "1754"]
[Annotator "NA"]
[PlyCount "45"]
[EventDate "2023.12.25"]
[EventType "tourn"]
[EventCountry "HUN"]
[SourceTitle "playchess.com"]
[Source "ChessBase"]
[SourceQuality "1"]
[TimeControl "40/5400+30:1800+30"]

1. d4 {[%emt 0:21:25]} Nf6 {[%emt 0:00:19]} 2. c4 {[%emt 0:00:03]} e6 {[%emt 0:00:27]} 3. Nc3 {[%emt 0:00:02]} Bb4 {[%emt 0:00:33]} 4. a3 {[%emt 0:00:10]} Bxc3+ {[%emt 0:00:46]} 5. bxc3 {[%emt 0:00:02]} O-O {[%emt 0:03:09]} 6. f3 {[%emt 0:00:20]} d5 {[%emt 0:06:03]} 7. e3 {[%emt 0:01:02]} b6 {[%emt 0:12:11]} 8. Bd3 {[%emt 0:00:12]} Ba6 {[%emt 0:01:55]} 9. cxd5 {[%emt 0:00:07]} Bxd3 {[%emt 0:01:03]} 10. Qxd3 {[%emt 0:00:03]} exd5 {[%emt 0:00:42]} 11. Ne2 {[%emt 0:00:16]} Nbd7 {[%emt 0:06:15]} 12. O-O {[%emt 0:00:08]} Re8 {[%emt 0:02:03]} 13. Ng3 {[%emt 0:00:18]} Nf8 {[%emt 0:20:46]} 14. e4 {[%emt 0:01:18]} Ne6 {[%emt 0:05:18]} 15. e5 {[%emt 0:00:32]} Nd7 {[%emt 0:00:24]} 16. f4 {[%emt 0:00:10]} c5 {[%emt 0:05:10]} 17. f5 {[%emt 0:02:15]} Nef8 {[%emt 0:03:03]} 18. f6 {[%emt 0:01:28]} g6 {[%emt 0:06:22]} 19. Qd2 {[%emt 0:05:17]} Ne6 {[%emt 0:03:49]} 20. Qh6 {[%emt 0:01:05]} Kh8 {[%emt 0:01:01]} 21. Ne2 {[%emt 0:05:08]} Rg8 {[%emt 0:00:31]} 22. Rf3 {[%emt 0:00:19]} Qf8 {[%emt 0:04:15]} 23. Qxh7+ {[%emt 0:00:21]} 1-0

[Event "Vezerkepzo FM Christmas 2023"]
[Site "Budapest"]
[Date "2023.12.30"]
[Round "5.1"]
[White "Anjali R. Sagar"]
[Black "Kahn, Evarth"]
[Result "0-1"]
[ECO "B77"]
[WhiteElo "1559"]
[BlackElo "1972"]
[Annotator "NA"]
[PlyCount "104"]
[EventDate "2023.12.25"]
[EventType "tourn"]
[EventCountry "HUN"]
[SourceTitle "playchess.com"]
[Source "ChessBase"]
[SourceQuality "1"]
[TimeControl "40/5400+30:1800+30"]

1. e4 {[%emt 0:00:07]} c5 {[%emt 0:09:17]} 2. Nf3 {[%emt 0:00:14]} d6 {[%emt 0:00:07]} 3. d4 {[%emt 0:00:15]} cxd4 {[%emt 0:00:04]} 4. Nxd4 {[%emt 0:00:08]} Nf6 {[%emt 0:00:08]} 5. Nc3 {[%emt 0:00:16]} g6 {[%emt 0:00:03]} 6. Be3 {[%emt 0:00:11]} Bg7 {[%emt 0:00:02]} 7. f3 {[%emt 0:00:09]} O-O {[%emt 0:00:05]} 8. Bc4 {[%emt 0:00:28]} Nc6 {[%emt 0:01:07]} 9. Qd2 {[%emt 0:00:21]} Qa5 {[%emt 0:01:32]} 10. Bb3 {[%emt 0:02:34]} Nxd4 {[%emt 0:00:55]} 11. Bxd4 {[%emt 0:00:15]} Be6 {[%emt 0:00:27]} 12. O-O {[%emt 0:01:45]} Qb4 {[%emt 0:07:39]} 13. Rad1 {[%emt 0:02:47]} Nd7 {[%emt 0:06:46]} 14. Bxg7 {[%emt 0:09:26]} Kxg7 {[%emt 0:00:25]} 15. Qd4+ {[%emt 0:00:55]} Qxd4+ {[%emt 0:00:04]} 16. Rxd4 {[%emt 0:00:08]} Rfc8 {[%emt 0:00:59]} 17. Nd5 {[%emt 0:02:35]} Kf8 {[%emt 0:02:04]} 18. Ne3 {[%emt 0:05:42]} Rc5 {[%emt 0:01:48]} 19. c3 {[%emt 0:03:11]} a5 {[%emt 0:06:14]} 20. Bd5 {[%emt 0:06:37]} Rb8 {[%emt 0:03:21]} 21. Rfd1 {[%emt 0:03:28]} b5 {[%emt 0:00:20]} 22. a3 {[%emt 0:00:27]} Nb6 {[%emt 0:01:36]} 23. Bxe6 {[%emt 0:07:30]} fxe6 {[%emt 0:00:02]} 24. Kf2 {[%emt 0:08:01]} Nc4 {[%emt 0:02:11]} 25. Rb1 {[%emt 0:01:08]} e5 {[%emt 0:02:21]} 26. Rdd1 {[%emt 0:02:20]} Nxe3 {[%emt 0:01:50]} 27. Kxe3 {[%emt 0:00:15]} b4 {[%emt 0:00:02]} 28. axb4 {[%emt 0:03:59]} axb4 {[%emt 0:00:02]} 29. cxb4 {[%emt 0:01:47]} Rxb4 {[%emt 0:00:08]} 30. Rd2 {[%emt 0:02:15]} Kf7 {[%emt 0:00:28]} 31. Ke2 {[%emt 0:04:53]} Ke6 {[%emt 0:01:09]} 32. Kd1 {[%emt 0:00:50]} g5 {[%emt 0:01:37]} 33. Rc2 {[%emt 0:00:59]} Rcb5 {[%emt 0:01:36]} 34. Kc1 {[%emt 0:01:09]} g4 {[%emt 0:00:52]} 35. Ra1 {[%emt 0:00:56]} gxf3 {[%emt 0:00:05]} 36. gxf3 {[%emt 0:00:15]} Rb3 {[%emt 0:00:05]} 37. Rf2 {[%emt 0:01:18]} Rc5+ {[%emt 0:00:20]} 38. Kb1 {[%emt 0:00:16]} Rcc3 {[%emt 0:01:08]} 39. Ra7 {[%emt 0:01:23]} Rxf3 {[%emt 0:00:10]} 40. Rg2 {[%emt 0:00:37]} Rb4 {[%emt 0:00:36]} 41. Rg7 {[%emt 0:30:45]} Rf7 {[%emt 0:30:02]} 42. Rg4 {[%emt 0:00:18]} Rf1+ {[%emt 0:02:31]} 43. Ka2 {[%emt 0:00:11]} Rf2 {[%emt 0:00:04]} 44. Rg7 {[%emt 0:00:56]} Rfxb2+ {[%emt 0:00:30]} 45. Ka1 {[%emt 0:00:12]} Rb1+ {[%emt 0:00:59]} 46. Ka2 {[%emt 0:00:08]} Rb7 {[%emt 0:03:52]} 47. Ra4 {[%emt 0:02:00]} R1b2+ {[%emt 0:00:14]} 48. Ka1 {[%emt 0:00:12]} Rxh2 {[%emt 0:00:07]} 49. Rg3 {[%emt 0:02:46]} h5 {[%emt 0:00:38]} 50. Ra6 {[%emt 0:00:56]} Rh1+ {[%emt 0:00:29]} 51. Ka2 {[%emt 0:00:08]} h4 {[%emt 0:00:03]} 52. Rg2 {[%emt 0:00:26]} h3 {[%emt 0:00:03]} 0-1

[Event "Vezerkepzo FM Christmas 2023"]
[Site "Budapest"]
[Date "2023.12.30"]
[Round "5.2"]
[White "Sagar Siya"]
[Black "Manukonda Arun"]
[Result "1-0"]
[ECO "B90"]
[WhiteElo "1537"]
[BlackElo "2085"]
[Annotator "NA"]
[PlyCount "97"]
[EventDate "2023.12.25"]
[EventType "tourn"]
[EventCountry "HUN"]
[SourceTitle "playchess.com"]
[Source "ChessBase"]
[SourceQuality "1"]
[TimeControl "40/5400+30:1800+30"]

1. e4 {[%emt 0:00:05]} c5 {[%emt 1:22:33]} 2. Nf3 {[%emt 0:00:33]} d6 {[%emt 0:00:02]} 3. d4 {[%emt 0:00:16]} cxd4 {[%emt 0:00:01]} 4. Nxd4 {[%emt 0:00:09]} Nf6 {[%emt 0:00:01]} 5. Nc3 {[%emt 0:00:13]} a6 {[%emt 0:00:01]} 6. f3 {[%emt 0:00:12]} e5 {[%emt 0:00:02]} 7. Nb3 {[%emt 0:00:08]} Be7 {[%emt 0:00:02]} 8. Be3 {[%emt 0:00:23]} Be6 {[%emt 0:00:01]} 9. Qd2 {[%emt 0:00:18]} h5 {[%emt 0:00:03]} 10. Nd5 {[%emt 0:00:31]} Nxd5 {[%emt 0:00:02]} 11. exd5 {[%emt 0:00:07]} Bf5 {[%emt 0:00:01]} 12. Be2 {[%emt 0:00:17]} Nd7 {[%emt 0:00:02]} 13. O-O {[%emt 0:01:27]} Rc8 {[%emt 0:00:28]} 14. c4 {[%emt 0:01:28]} O-O {[%emt 0:00:11]} 15. Na5 {[%emt 0:01:32]} Qc7 {[%emt 0:00:11]} 16. b4 {[%emt 0:01:45]} Bd8 {[%emt 0:00:01]} 17. Rac1 {[%emt 0:01:48]} Qb8 {[%emt 0:06:44]} 18. Nb3 {[%emt 0:01:21]} b6 {[%emt 0:02:01]} 19. c5 {[%emt 0:05:02]} bxc5 {[%emt 0:00:46]} 20. Bxa6 {[%emt 0:02:09]} Rc7 {[%emt 0:00:03]} 21. bxc5 {[%emt 0:01:49]} Nxc5 {[%emt 0:00:06]} 22. Nxc5 {[%emt 0:02:06]} dxc5 {[%emt 0:00:02]} 23. Kh1 {[%emt 0:05:31]} Ra7 {[%emt 0:00:27]} 24. Be2 {[%emt 0:03:24]} Ba5 {[%emt 0:00:53]} 25. Qd1 {[%emt 0:02:13]} Bb4 {[%emt 0:02:03]} 26. Bxc5 {[%emt 0:15:47]} Bxc5 {[%emt 0:00:01]} 27. Rxc5 {[%emt 0:00:16]} Rxa2 {[%emt 0:00:09]} 28. Bd3 {[%emt 0:04:34]} Bxd3 {[%emt 0:00:23]} 29. Qxd3 {[%emt 0:00:06]} Qb2 {[%emt 0:00:07]} 30. Rg1 {[%emt 0:00:14]} h4 {[%emt 0:02:07]} 31. h3 {[%emt 0:03:09]} Rfa8 {[%emt 0:01:20]} 32. d6 {[%emt 0:04:16]} Qf2 {[%emt 0:02:29]} 33. Rxe5 {[%emt 0:11:59]} Rd2 {[%emt 0:01:08]} 34. Qe4 {[%emt 0:00:59]} Rf8 {[%emt 0:01:13]} 35. Rh5 {[%emt 0:05:08]} g6 {[%emt 0:00:01]} 36. Rxh4 {[%emt 0:00:27]} Rxd6 {[%emt 0:01:33]} 37. Qe1 {[%emt 0:00:59]} Qb6 {[%emt 0:01:09]} 38. Qc3 {[%emt 0:01:26]} f6 {[%emt 0:00:26]} 39. Qc4+ {[%emt 0:00:52]} Kg7 {[%emt 0:00:10]} 40. Re1 {[%emt 0:00:40]} Rd7 {[%emt 0:00:51]} 41. Rhe4 {[%emt 0:31:48]} Rff7 {[%emt 0:02:10]} 42. Re8 {[%emt 0:00:00]} Qf2 {[%emt 0:02:37]} 43. Qc8 {[%emt 0:00:00]} Kh6 {[%emt 0:05:13]} 44. Qb8 {[%emt 0:00:00]} Rd2 {[%emt 0:09:50]} 45. Rg1 {[%emt 0:00:00]} Qd4 {[%emt 0:05:20]} 46. Rh8+ {[%emt 0:00:00]} Kg5 {[%emt 0:00:13]} 47. h4+ {[%emt 0:00:00]} Kf5 {[%emt 0:00:39]} 48. g4+ {[%emt 0:00:00]} Ke6 {[%emt 0:00:02]} 49. Re1+ {[%emt 0:00:00]} 1-0

[Event "Vezerkepzo FM Christmas 2023"]
[Site "Budapest"]
[Date "2023.12.30"]
[Round "5.3"]
[White "Kozma, Edit"]
[Black "Varga, Csaba Zoltan"]
[Result "0-1"]
[ECO "B00"]
[WhiteElo "1754"]
[BlackElo "2201"]
[Annotator "ChessBase"]
[PlyCount "120"]
[EventDate "2023.12.25"]
[EventType "tourn"]
[EventCountry "HUN"]
[SourceTitle "playchess.com"]
[Source "ChessBase"]
[SourceQuality "1"]
[TimeControl "40/5400+30:1800+30"]

1. e4 {[%emt 0:00:15]} Nc6 {[%emt 0:14:32]} 2. d4 {[%emt 0:03:27]} d5 {[%emt 0:00:08]} 3. exd5 {[%emt 0:03:00]} Qxd5 {[%emt 0:01:15]} 4. Nf3 {[%emt 0:03:09]} Bg4 {[%emt 0:06:28]} 5. Be2 {[%emt 0:04:19]} e5 {[%emt 0:03:15]} 6. dxe5 {[%emt 0:03:25]} Qxd1+ {[%emt 0:00:46]} 7. Bxd1 {[%emt 0:00:19]} O-O-O {[%emt 0:00:13]} 8. Nbd2 {[%emt 0:02:45]} h5 {[%emt 0:03:16]} 9. O-O {[%emt 0:06:35]} Nh6 {[%emt 0:00:12]} 10. c3 {[%emt 0:04:09]} Be7 {[%emt 0:00:54]} 11. Ba4 {[%emt 0:02:57]} Bd7 {[%emt 0:05:29]} 12. Bxc6 {[%emt 0:06:06]} Bxc6 {[%emt 0:00:07]} 13. Nd4 {[%emt 0:00:17]} Bd5 {[%emt 0:01:25]} 14. N2b3 {[%emt 0:05:13]} c5 {[%emt 0:00:50]} 15. Nc2 {[%emt 0:06:38]} Ng4 {[%emt 0:00:24]} 16. f4 {[%emt 0:06:23]} Bc4 {[%emt 0:07:56]} 17. Re1 {[%emt 0:02:01]} Bd3 {[%emt 0:04:49]} 18. Ne3 {[%emt 0:01:35]} Bh4 {[%emt 0:01:54]} 19. g3 {[%emt 0:01:45]} Be7 {[%emt 0:00:04]} 20. h3 {[%emt 0:09:22]} Nh6 {[%emt 0:01:35]} 21. c4 {[%emt 0:07:56]} Rhe8 {[%emt 0:01:53]} 22. Nd5 {[%emt 0:04:45]} Bf8 {[%emt 0:00:37]} 23. Be3 {[%emt 0:00:35]} Bxc4 {[%emt 0:00:16]} 24. Nc3 {[%emt 0:01:28]} b6 {[%emt 0:00:33]} 25. Nd2 {[%emt 0:00:53]} Be6 {[%emt 0:00:09]} 26. Kh2 {[%emt 0:01:15]} Nf5 {[%emt 0:00:51]} 27. Nde4 {[%emt 0:01:08]} Rd3 {[%emt 0:01:43]} 28. Bf2 {[%emt 0:01:03]} Red8 {[%emt 0:00:15]} 29. g4 {[%emt 0:03:16]} hxg4 {[%emt 0:01:10]} 30. hxg4 {[%emt 0:02:20]} Nh6 {[%emt 0:00:05]} 31. g5 {[%emt 0:01:01]} Ng4+ {[%emt 0:00:05]} 32. Kg2 {[%emt 0:00:15]} Nxf2 {[%emt 0:00:21]} 33. Kxf2 {[%emt 0:00:39]} Bg4 {[%emt 0:00:07]} 34. Re3 {[%emt 0:00:49]} Rxe3 {[%emt 0:01:25]} 35. Kxe3 {[%emt 0:00:05]} c4 {[%emt 0:00:09]} 36. Nb5 {[%emt 0:01:54]} Rd3+ {[%emt 0:00:31]} 37. Kf2 {[%emt 0:00:05]} Kd7 {[%emt 0:01:57]} 38. Nxa7 {[%emt 0:04:28]} Rf3+ {[%emt 0:00:19]} 39. Kg2 {[%emt 0:00:05]} Rxf4 {[%emt 0:00:06]} 40. Nf2 {[%emt 0:00:30]} Bh5 {[%emt 0:00:26]} 41. Nh3 {[%emt 0:30:59]} Rg4+ {[%emt 0:30:17]} 42. Kh2 {[%emt 0:00:41]} Re4 {[%emt 0:00:40]} 43. Rc1 {[%emt 0:00:59]} Bb4 {[%emt 0:00:42]} 44. Rc2 {[%emt 0:00:00]} Be1 {[%emt 0:00:00]} 45. Nb5 {[%emt 0:00:00]} Rxe5 {[%emt 0:00:00]} 46. a4 {[%emt 0:00:00]} Be2 {[%emt 0:00:00]} 47. Na3 {[%emt 0:00:00]} Re4 {[%emt 0:00:00]} 48. Kg2 {[%emt 0:00:00]} Rg4+ {[%emt 0:00:00]} 49. Kh2 {[%emt 0:00:00]} Bd3 {[%emt 0:00:00]} 50. Rg2 {[%emt 0:00:00]} Rh4 {[%emt 0:00:00]} 51. Rg1 {[%emt 0:00:00]} Bf2 {[%emt 0:00:00]} 52. Rc1 {[%emt 0:00:00]} Be3 {[%emt 0:00:00]} 53. Rd1 {[%emt 0:00:00]} Bf4+ {[%emt 0:00:00]} 54. Kg2 {[%emt 0:00:00]} Bd6 {[%emt 0:00:00]} 55. Nf2 {[%emt 0:00:00]} Rd4 {[%emt 0:00:00]} 56. Nb5 {[%emt 0:00:00]} Be4+ {[%emt 0:00:00]} 57. Nxe4 {[%emt 0:00:00]} Rxd1 {[%emt 0:00:00]} 58. Nexd6 {[%emt 0:00:00]} Rxd6 {[%emt 0:00:00]} 59. Nxd6 {[%emt 0:00:00]} Kxd6 {[%emt 0:00:00]} 60. Kf3 {[%emt 0:00:00]} Ke5 {[%emt 0:00:00]} 0-1

[Event "Vezerkepzo FM Christmas 2023"]
[Site "Budapest"]
[Date "2023.12.31"]
[Round "6.1"]
[White "Manukonda Arun"]
[Black "Anjali R. Sagar"]
[Result "1-0"]
[ECO "D02"]
[WhiteElo "2085"]
[BlackElo "1559"]
[Annotator "NA COMBH"]
[PlyCount "24"]
[EventDate "2023.12.25"]
[EventType "tourn"]
[EventCountry "HUN"]
[SourceTitle "playchess.com"]
[Source "ChessBase"]
[SourceQuality "1"]
[TimeControl "40/5400+30:1800+30"]

1. d4 {[%emt 0:27:23]} d5 {[%emt 0:00:08]} 2. Nf3 {[%emt 0:00:58]} Bf5 {[%emt 0:00:15]} 3. e3 {[%emt 0:00:11]} e6 {[%emt 0:00:21]} 4. Bd3 {[%emt 0:00:52]} Bxd3 {[%emt 0:00:21]} 5. Qxd3 {[%emt 0:00:02]} Nf6 {[%emt 0:00:23]} 6. Qb5+ {[%emt 0:00:05]} Nbd7 {[%emt 0:00:41]} 7. Qxb7 {[%emt 0:00:02]} Bd6 {[%emt 0:00:25]} 8. Qa6 {[%emt 0:01:43]} O-O {[%emt 0:04:36]} 9. O-O {[%emt 0:03:38]} Ne4 {[%emt 0:04:32]} 10. Nbd2 {[%emt 0:00:26]} Ndf6 {[%emt 0:00:09]} 11. Qe2 {[%emt 0:01:32]} c5 {[%emt 0:05:33]} 12. c4 {[%emt 0:00:58]} Rc8 {[%emt 0:06:11]} 1-0

[Event "Vezerkepzo FM Christmas 2023"]
[Site "Budapest"]
[Date "2023.12.31"]
[Round "6.3"]
[White "Kahn, Evarth"]
[Black "Kozma, Edit"]
[Result "1-0"]
[ECO "B52"]
[WhiteElo "1972"]
[BlackElo "1754"]
[Annotator "NA COMBH"]
[PlyCount "56"]
[EventDate "2023.12.25"]
[EventType "tourn"]
[EventCountry "HUN"]
[SourceTitle "playchess.com"]
[Source "ChessBase"]
[SourceQuality "1"]
[TimeControl "40/5400+30:1800+30"]

1. e4 c5 2. Nf3 d6 3. Bb5+ Bd7 4. Bxd7+ Qxd7 5. O-O Nc6 6. c3 Nf6 7. Re1 e6 8. d4 cxd4 9. cxd4 d5 10. e5 Ne4 11. Re2 Be7 12. Ne1 f6 13. f3 Ng5 14. Bxg5 fxg5 15. Nc3 a6 16. Nc2 b5 17. Qd2 O-O 18. Nd1 Rac8 19. Nf2 Qc7 20. Kh1 Na5 21. b3 Qc3 22. Qd1 Qc7 23. Nd3 Qb6 24. Nf2 Nc6 25. Qd2 Rc7 26. Ne1 Rfc8 27. Nh3 h6 28. f4 Nd8 1-0

[Event "Vezerkepzo FM Christmas 2023"]
[Site "Budapest"]
[Date "2024.01.01"]
[Round "7.1"]
[White "Anjali R. Sagar"]
[Black "Varga, Csaba Zoltan"]
[Result "0-1"]
[ECO "B00"]
[WhiteElo "1559"]
[BlackElo "2201"]
[Annotator "RC"]
[PlyCount "72"]
[EventDate "2023.12.25"]
[EventType "tourn"]
[EventCountry "HUN"]
[SourceTitle "playchess.com"]
[Source "ChessBase"]
[SourceQuality "1"]
[TimeControl "40/5400+30:1800+30"]

1. e4 {[%emt 0:00:30]} b6 {[%emt 0:29:59]} 2. d4 {[%emt 0:00:00]} Bb7 {[%emt 0:00:03]} 3. Bd3 {[%emt 0:00:12]} Nf6 {[%emt 0:00:13]} 4. Nd2 {[%emt 0:00:33]} e6 {[%emt 0:00:07]} 5. Ngf3 {[%emt 0:00:33]} c5 {[%emt 0:00:33]} 6. c3 {[%emt 0:00:24]} cxd4 {[%emt 0:00:15]} 7. cxd4 {[%emt 0:00:11]} Nc6 {[%emt 0:00:04]} 8. O-O {[%emt 0:00:47]} Nb4 {[%emt 0:01:06]} 9. Bb1 {[%emt 0:00:23]} Ba6 {[%emt 0:00:06]} 10. Re1 {[%emt 0:00:54]} Nd3 {[%emt 0:00:06]} 11. Bxd3 {[%emt 0:02:29]} Bxd3 {[%emt 0:00:04]} 12. Qb3 {[%emt 0:00:48]} Ba6 {[%emt 0:00:13]} 13. d5 {[%emt 0:05:54]} Bc5 {[%emt 0:01:31]} 14. dxe6 {[%emt 0:01:38]} fxe6 {[%emt 0:00:27]} 15. e5 {[%emt 0:00:46]} Nd5 {[%emt 0:00:21]} 16. Ne4 {[%emt 0:02:53]} O-O {[%emt 0:00:10]} 17. Nfg5 {[%emt 0:12:46]} h6 {[%emt 0:00:21]} 18. Nxc5 {[%emt 0:00:39]} bxc5 {[%emt 0:00:04]} 19. Ne4 {[%emt 0:00:33]} Qh4 {[%emt 0:00:23]} 20. Bd2 {[%emt 0:09:13]} Rab8 {[%emt 0:00:24]} 21. Qa3 {[%emt 0:05:47]} Bb7 {[%emt 0:01:37]} 22. Qxc5 {[%emt 0:03:21]} Bc6 {[%emt 0:04:30]} 23. Qd4 {[%emt 0:02:08]} Kh8 {[%emt 0:00:20]} 24. f3 {[%emt 0:18:34]} Rf5 {[%emt 0:03:15]} 25. Qxa7 {[%emt 0:02:51]} Rxb2 {[%emt 0:00:22]} 26. Rab1 {[%emt 0:01:25]} Rxd2 {[%emt 0:00:40]} 27. Nxd2 {[%emt 0:01:23]} Nf4 {[%emt 0:00:45]} 28. g3 {[%emt 0:05:47]} Qg4 {[%emt 0:00:13]} 29. Rb8+ {[%emt 0:01:52]} Kh7 {[%emt 0:00:21]} 30. Qe3 {[%emt 0:02:34]} Nh3+ {[%emt 0:02:07]} 31. Kg2 {[%emt 0:01:45]} Ng5 {[%emt 0:02:40]} 32. Rf1 {[%emt 0:03:23]} h5 {[%emt 0:01:45]} 33. a3 {[%emt 0:04:35]} h4 {[%emt 0:16:28]} 34. Ne4 {[%emt 0:05:35]} Bxe4 {[%emt 0:01:20]} 35. Kg1 {[%emt 0:01:54]} hxg3 {[%emt 0:00:21]} 36. Qxe4 {[%emt 0:02:05]} Nxf3+ {[%emt 0:06:18]} 0-1

[Event "Vezerkepzo FM Christmas 2023"]
[Site "Budapest"]
[Date "2024.01.01"]
[Round "7.2"]
[White "Sagar Siya"]
[Black "Kahn, Evarth"]
[Result "0-1"]
[ECO "B78"]
[WhiteElo "1537"]
[BlackElo "1972"]
[Annotator "NA RC"]
[PlyCount "108"]
[EventDate "2023.12.25"]
[EventType "tourn"]
[EventCountry "HUN"]
[SourceTitle "playchess.com"]
[Source "ChessBase"]
[SourceQuality "1"]
[TimeControl "40/5400+30:1800+30"]

1. e4 {[%emt 0:00:05]} c5 {[%emt 0:02:43]} 2. Nf3 {[%emt 0:00:12]} d6 {[%emt 0:00:06]} 3. d4 {[%emt 0:00:11]} cxd4 {[%emt 0:00:04]} 4. Nxd4 {[%emt 0:00:07]} Nf6 {[%emt 0:00:05]} 5. Nc3 {[%emt 0:00:12]} g6 {[%emt 0:00:06]} 6. Be3 {[%emt 0:00:15]} Bg7 {[%emt 0:00:06]} 7. f3 {[%emt 0:00:06]} O-O {[%emt 0:00:04]} 8. Qd2 {[%emt 0:00:12]} Nc6 {[%emt 0:00:05]} 9. Bc4 {[%emt 0:00:12]} Bd7 {[%emt 0:00:05]} 10. O-O-O {[%emt 0:00:12]} Ne5 {[%emt 0:00:03]} 11. Bb3 {[%emt 0:00:23]} Qa5 {[%emt 0:00:04]} 12. Kb1 {[%emt 0:00:45]} Rfc8 {[%emt 0:00:04]} 13. h4 {[%emt 0:01:57]} Nc4 {[%emt 0:03:00]} 14. Bxc4 {[%emt 0:00:11]} Rxc4 {[%emt 0:00:03]} 15. g4 {[%emt 0:01:57]} Rac8 {[%emt 0:02:25]} 16. h5 {[%emt 0:03:37]} Rxc3 {[%emt 0:06:05]} 17. bxc3 {[%emt 0:00:44]} Bxg4 {[%emt 0:01:16]} 18. hxg6 {[%emt 0:07:24]} hxg6 {[%emt 0:07:54]} 19. fxg4 {[%emt 0:19:05]} Nxe4 {[%emt 0:05:43]} 20. Qh2 {[%emt 0:00:13]} Nxc3+ {[%emt 0:01:36]} 21. Kc1 {[%emt 0:00:22]} Nxa2+ {[%emt 0:03:12]} 22. Kb1 {[%emt 0:01:40]} Qb4+ {[%emt 0:10:52]} 23. Nb3 {[%emt 0:07:52]} Qa3 {[%emt 0:04:01]} 24. Qh7+ {[%emt 0:01:26]} Kf8 {[%emt 0:00:01]} 25. Qh8+ {[%emt 0:01:04]} Bxh8 {[%emt 0:00:02]} 26. Rxh8+ {[%emt 0:00:07]} Kg7 {[%emt 0:00:04]} 27. Rxc8 {[%emt 0:00:17]} Nb4 {[%emt 0:00:08]} 28. Bd4+ {[%emt 0:04:00]} e5 {[%emt 0:00:17]} 29. Bb2 {[%emt 0:00:55]} Qa2+ {[%emt 0:03:45]} 30. Kc1 {[%emt 0:00:08]} Qa6 {[%emt 0:00:05]} 31. Bc3 {[%emt 0:08:52]} Na2+ {[%emt 0:10:16]} 32. Kb2 {[%emt 0:00:09]} Qe2 {[%emt 0:09:34]} 33. Rxd6 {[%emt 0:04:46]} Nxc3 {[%emt 0:00:13]} 34. Rxc3 {[%emt 0:00:53]} Qxg4 {[%emt 0:00:07]} 35. Rc7 {[%emt 0:01:50]} a5 {[%emt 0:01:11]} 36. Rdd7 {[%emt 0:02:46]} a4 {[%emt 0:03:51]} 37. Rxf7+ {[%emt 0:03:11]} Kh6 {[%emt 0:00:01]} 38. Nc5 {[%emt 0:03:28]} Qb4+ {[%emt 0:06:31]} 39. Ka2 {[%emt 0:00:09]} Qc4+ {[%emt 0:00:26]} 40. Ka3 {[%emt 0:00:44]} b5 {[%emt 0:01:41]} 41. Nd3 {[%emt 0:30:59]} Qd4 {[%emt 0:31:41]} 42. Ka2 {[%emt 0:04:01]} Qd5+ {[%emt 0:03:30]} 43. Ka3 {[%emt 0:02:14]} Qd6+ {[%emt 0:00:13]} 44. Kb2 {[%emt 0:01:33]} e4 {[%emt 0:03:08]} 45. Nf4 {[%emt 0:01:50]} Qb4+ {[%emt 0:01:04]} 46. Kc1 {[%emt 0:03:13]} a3 {[%emt 0:03:18]} 47. Kd1 {[%emt 0:00:06]} a2 {[%emt 0:00:29]} 48. Ra7 {[%emt 0:00:41]} Qb1+ {[%emt 0:01:46]} 49. Kd2 {[%emt 0:00:06]} a1=Q 50. Rh7+ {[%emt 0:00:34]} Kg5 {[%emt 0:00:13]} 51. Nh3+ {[%emt 0:00:07]} Kg4 {[%emt 0:00:25]} 52. Nf2+ {[%emt 0:00:09]} Kf3 {[%emt 0:01:13]} 53. Rhf7+ {[%emt 0:00:31]} Kg2 {[%emt 0:00:08]} 54. Rxa1 {[%emt 0:00:14]} Qxa1 {[%emt 0:00:04]} 0-1